bitfinex/quotes_ETHUSD_20260121
["timestamp","ask_amount","ask_price","bid_price","bid_amount"]
[1769007900294,0.128,2978.2,2975.7,11.58191216]
[1769007900295,3.35789431,2978.1,2975.7,11.58191216]
[1769007900593,0.555,2978.0,2975.9,11.58191216]
[1769007900788,1.28207886,2977.9,2975.9,11.58191216]
[1769007901022,12.52119731,2978.7,2976.1,11.58191216]
[1769007901192,3.35615518,2979.6,2976.7,13.20262083]
[1769007901393,0.555,2979.5,2977.1,11.58191216]
[1769007901597,12.64919731,2979.3,2976.2,6.71997848]
[1769007901823,12.52119731,2979.3,2976.6,11.58191216]
[1769007901996,1.25211973,2979.2,2976.8,11.58191216]
[1769007902324,1.80711973,2979.2,2976.8,11.58191216]
[1769007902488,1.25211973,2979.2,2977.0,11.58191216]
[1769007902687,0.555,2979.1,2977.1,11.58191216]
[1769007902892,12.52119731,2979.6,2977.2,11.61550076]
[1769007903224,6.71276094,2979.4,2977.2,14.94075114]
[1769007903427,3.9112702,2979.5,2977.2,3.35883898]
[1769007903623,3.35584362,2979.9,2977.3,11.58191216]
[1769007903825,3.35584362,2979.9,2977.2,10.07656032]
[1769007903826,0.33558436,2979.8,2977.5,11.58191216]
[1769007904128,12.52119731,2980.2,2977.5,11.58191216]
[1769007904129,15.87672274,2980.2,2977.5,11.58191216]
[1769007904332,0.555,2979.7,2977.5,11.58191216]
[1769007904531,19.23224817,2980.2,2977.5,11.58191216]
[1769007904740,12.52119731,2979.7,2977.1,3.3589532]
[1769007904898,12.52119731,2979.7,2977.0,11.58191216]
[1769007905198,12.52119731,2979.7,2976.8,3.35929563]
[1769007905199,22.5900008,2979.5,2977.1,11.58191216]
[1769007905405,12.52119731,2979.4,2977.1,14.9408854]
[1769007905605,1.25211973,2979.6,2977.2,11.58191216]
[1769007905808,0.002,2979.2,2977.4,11.58191216]
[1769007906523,0.002,2979.2,2977.0,3.36001823]
[1769007906724,0.002,2979.2,2977.0,11.58291216]
[1769007906894,0.002,2979.2,2977.2,11.58191216]
[1769007907098,0.555,2979.1,2977.2,11.58191216]
[1769007907295,0.555,2979.1,2977.3,11.58191216]
[1769007907521,0.555,2979.1,2977.3,14.94064176]
[1769007907695,3.9136071,2979.2,2977.3,11.58191216]
[1769007908125,0.002,2979.2,2977.4,11.58191216]
[1769007909311,0.002,2979.2,2977.6,11.58191216]
[1769007909754,0.002,2979.2,2977.2,3.35878856]
[1769007910059,12.52319731,2979.2,2977.0,14.94195774]
[1769007910231,12.52319731,2979.2,2977.0,11.58291216]
[1769007910542,12.52319731,2979.2,2977.1,3.35890644]
[1769007911019,12.52319731,2979.2,2977.0,11.58291216]
[1769007911219,1.25231973,2979.1,2977.2,11.58191216]
[1769007911530,0.002,2979.2,2977.4,11.58191216]
[1769007911695,0.002,2979.2,2977.5,0.03358522]
[1769007911907,0.002,2979.2,2977.4,11.58191216]
[1769007912411,19.23463425,2979.1,2977.0,3.36003474]
[1769007912614,1.92366342,2979.0,2977.0,6.71912106]
[1769007913327,5.28052778,2979.0,2977.0,11.58291216]
[1769007913527,12.52119731,2978.9,2977.0,0.001]
[1769007913935,12.52119731,2978.9,2977.0,3.36004719]
[1769007914451,1.92366342,2979.0,2977.1,11.58191216]
[1769007914607,3.91186232,2979.0,2977.1,11.58191216]
[1769007915247,3.91186232,2979.0,2977.1,14.9408276]
[1769007915641,16.36573617,2979.0,2977.1,11.58191216]
[1769007915836,12.45387385,2979.0,2977.1,18.29985577]
[1769007916135,15.81072341,2979.0,2977.1,14.94088228]
[1769007916338,1.63657234,2978.9,2977.1,14.94088228]
[1769007916539,1.63657234,2978.9,2977.2,11.64758789]
[1769007916748,6.7136623,2979.0,2977.1,11.64758789]
[1769007916907,13.00887385,2979.1,2977.1,3.35896675]
[1769007916908,0.555,2979.1,2977.1,3.35896675]
[1769007917108,0.555,2979.1,2977.2,11.64758789]
[1769007917340,0.002,2979.2,2977.3,3.35874785]
[1769007917720,0.002,2979.2,2977.3,6.7174957]
[1769007917921,0.002,2979.2,2977.4,11.64758789]
[1769007918227,0.002,2979.0,2977.4,11.64758789]
[1769007918736,0.002,2979.0,2977.6,11.64758789]
[1769007918942,0.002,2979.2,2977.8,11.64758789]
[1769007919445,0.002,2980.4,2978.2,11.64758789]
[1769007919620,1.58329594,2980.4,2978.4,11.64758789]
[1769007920146,12.45387385,2980.3,2978.4,11.64758789]
[1769007920361,1.58329594,2980.4,2978.4,11.64758789]
[1769007920508,0.002,2980.4,2978.8,11.64758789]
[1769007921335,0.002,2980.4,2978.9,3.35694383]
[1769007921534,12.45587385,2980.4,2978.0,3.35793408]
[1769007921746,12.45587385,2980.4,2977.8,15.00567719]
[1769007921953,12.45387385,2980.2,2977.3,19.51816181]
[1769007922155,12.45387385,2980.0,2977.3,12.20258789]
[1769007922357,12.45387385,2979.8,2977.3,15.56132393]
[1769007922557,1.33211605,2979.7,2977.8,11.64758789]
[1769007922854,12.45387385,2980.3,2977.9,3.35805292]
[1769007923035,12.45387385,2980.2,2977.8,11.64758789]
[1769007923431,12.45387385,2980.0,2977.8,15.00575265]
[1769007923754,12.45387385,2980.0,2977.8,3.35815031]
[1769007924641,12.45387385,2980.0,2977.8,3.35810453]
[1769007924844,1.9165058,2979.9,2978.0,11.64758789]
[1769007925023,12.45387385,2980.0,2977.9,0.67163889]
[1769007925223,12.45387385,2980.0,2977.8,3.35810453]
[1769007925421,19.16550845,2979.9,2977.6,3.35840045]
[1769007925624,12.45387385,2979.8,2977.6,3.35840045]
[1769007926055,12.45387385,2979.8,2977.5,15.00605521]
[1769007926256,12.45387385,2979.8,2977.5,18.36457746]
[1769007926456,6.7116346,2979.9,2977.5,18.36457746]
[1769007926457,14.9254247,2979.7,2977.5,18.36457746]
[1769007926655,14.9254247,2979.7,2977.6,11.64758789]
[1769007926860,14.9254247,2979.7,2977.5,3.35846732]
[1769007927038,14.9254247,2979.7,2977.5,6.71698957]
[1769007927758,3.35615518,2979.6,2977.4,18.36485799]
[1769007927957,2.16376976,2979.5,2977.4,18.36485799]
[1769007928165,2.16376976,2979.5,2977.5,11.64758789]
[1769007929631,0.002,2980.4,2978.7,7.31557392]
[1769007929838,0.002,2980.4,2978.8,11.64758789]
[1769007930835,0.002,2980.0,2978.8,11.64758789]
[1769007931033,0.002,2980.0,2978.3,11.64758789]
[1769007931679,0.002,2980.0,2978.4,3.35750738]
[1769007932166,0.002,2980.0,2978.4,6.71501476]
[1769007932929,0.002,2980.0,2978.5,11.64758789]
[1769007933128,0.002,2980.2,2978.8,11.64758789]
[1769007933330,0.002,2980.2,2978.4,3.35750738]
[1769007933881,0.002,2980.2,2978.5,11.64758789]
[1769007934649,0.002,2980.4,2979.0,7.31557392]
[1769007934853,0.002,2980.4,2979.1,11.64758789]
[1769007935250,0.002,2980.6,2979.2,8.937076]
[1769007935534,0.002,2980.6,2979.3,11.64758789]
[1769007935764,3.35621876,2981.4,2979.5,11.64758789]
[1769007935765,0.002,2981.4,2979.5,11.64758789]
[1769007935951,1.24558739,2981.3,2979.5,11.64758789]
[1769007936331,0.002,2981.4,2979.7,11.64758789]
[1769007937151,0.002,2981.4,2979.9,11.64758789]
[1769007937647,0.002,2981.4,2980.1,11.64758789]
[1769007938247,0.002,2981.4,2979.6,18.96316181]
[1769007938591,0.002,2981.4,2979.9,3.35577954]
[1769007938880,0.002,2981.4,2980.0,12.31875724]
[1769007939252,12.45387385,2982.3,2980.0,12.31875724]
[1769007939661,12.45387385,2982.1,2980.1,15.00317998]
[1769007940170,12.45387385,2982.1,2980.1,18.35877207]
[1769007940475,12.45387385,2982.1,2980.0,0.67116935]
[1769007940698,12.45387385,2981.9,2979.5,3.35620272]
[1769007940982,12.45387385,2981.9,2979.6,3.35608379]
[1769007941778,2.25135613,2982.0,2979.3,6.71298626]
[1769007941779,12.45387385,2981.7,2979.3,6.71298626]
[1769007941977,12.45387385,2981.7,2979.4,11.64758789]
[1769007942646,12.45387385,2981.7,2979.6,11.64758789]
[1769007942849,1.58075528,2981.6,2979.6,11.64758789]
[1769007943382,3.35327285,2982.2,2979.6,11.64758789]
[1769007943383,12.45387385,2982.7,2980.6,11.64758789]
[1769007943779,12.45387385,2982.7,2980.7,15.00250452]
[1769007943780,15.80656125,2982.7,2980.7,15.00250452]
[1769007943970,0.002,2981.7,2980.7,15.00250452]
[1769007944292,0.002,2981.7,2980.7,18.35742115]
[1769007944509,0.002,2981.7,2980.7,15.00250452]
[1769007945199,3.90737507,2983.0,2980.8,11.64758789]
[1769007945395,7.25975014,2983.0,2980.8,11.64758789]
[1769007945595,12.26600712,2982.9,2980.8,11.64758789]
[1769007945770,6.70510928,2982.8,2980.8,11.64758789]
[1769007945956,1.89711164,2982.7,2980.8,15.00238468]
[1769007946389,14.16311876,2982.7,2980.3,7.31557392]
[1769007946559,14.16311876,2982.7,2980.4,11.79948184]
[1769007946755,14.16311876,2982.7,2980.8,3.35480407]
[1769007947098,3.35214372,2983.2,2980.8,3.35480407]
[1769007947099,3.35107687,2984.2,2982.1,15.28183184]
[1769007947259,12.26600712,2984.3,2982.1,11.79948184]
[1769007947260,15.61690792,2984.3,2982.1,11.79948184]
[1769007947591,12.26600712,2984.6,2982.3,11.79948184]
[1769007947794,12.26600712,2984.6,2982.4,10.05901287]
[1769007947962,1.22660071,2984.5,2982.6,7.31557392]
[1769007948698,0.555,2984.8,2983.2,7.31557392]
[1769007950158,0.555,2984.8,2983.2,10.66767707]
[1769007950354,15.61601388,2985.1,2983.2,10.66767707]
[1769007950555,18.96602064,2985.1,2983.2,7.31557392]
[1769007950754,1.89660206,2985.0,2983.3,1.06677422]
[1769007951787,3.35019598,2984.9,2983.3,1.06677422]
[1769007952003,14.16260918,2985.0,2983.3,4.41875515]
[1769007952459,17.51271428,2985.0,2983.3,4.41875515]
[1769007952661,17.51271428,2985.0,2983.3,1.06677422]
[1769007952891,1.75127143,2984.9,2983.4,1.17344072]
[1769007953982,20.71767121,2984.9,2983.4,1.17344072]
[1769007954197,12.26600712,2984.8,2983.1,3.35219027]
[1769007954382,12.26600712,2984.8,2983.2,7.31557392]
[1769007954562,12.26600712,2984.8,2983.2,10.66762817]
[1769007954758,12.26600712,2984.8,2983.3,3.35192441]
[1769007954992,1.22660071,2984.7,2983.4,1.06674983]
[1769007955739,3.34997152,2985.1,2983.4,1.06674983]
[1769007956198,6.69994304,2985.1,2983.4,1.06674983]
[1769007956491,12.26600712,2985.0,2983.4,1.06674983]
[1769007957191,12.26600712,2985.0,2983.5,0.001]
[1769007957497,0.002,2984.8,2983.5,0.001]
[1769007957664,1.22880071,2984.8,2983.5,0.001]
[1769007958799,12.22755441,2984.7,2983.5,0.001]
[1769007958999,12.22755441,2984.5,2982.3,12.19581342]
[1769007959505,12.22755441,2984.5,2982.0,10.6689478]
[1769007959706,12.22755441,2984.5,2982.2,3.35322453]
[1769007960078,12.22755441,2984.5,2982.1,3.35325661]
[1769007960297,12.22755441,2984.3,2982.1,15.54907003]
[1769007960502,14.12046131,2984.2,2982.2,12.19581342]
[1769007960813,12.22755441,2984.2,2982.0,7.31557392]
[1769007961122,12.22755441,2984.2,2982.0,10.66902557]
[1769007961274,12.22755441,2984.2,2982.0,7.31557392]
[1769007961478,12.22755441,2984.0,2982.1,0.73155739]
[1769007961707,12.22755441,2984.0,2981.9,3.35355145]
[1769007961912,12.22755441,2984.0,2981.8,3.35359849]
[1769007962113,12.22755441,2984.0,2981.7,12.19581342]
[1769007962411,12.22755441,2983.8,2981.6,12.19581342]
[1769007962709,15.57853624,2984.2,2982.1,12.19581342]
[1769007963778,18.92951807,2984.2,2982.1,12.19581342]
[1769007963978,12.22755441,2984.2,2982.1,12.19581342]
[1769007964414,0.554,2984.3,2982.7,12.19581342]
[1769007964578,15.57808885,2984.6,2982.8,14.14695215]
[1769007965410,0.002,2984.8,2983.2,7.31557392]
[1769007965611,0.002,2984.8,2983.2,19.51138734]
[1769007965918,0.002,2984.8,2983.3,0.39615654]
[1769007966306,0.002,2984.8,2983.3,0.42966916]
[1769007966612,0.002,2984.8,2983.3,0.39615654]
[1769007966914,3.34967152,2985.4,2983.3,0.39615654]
[1769007966915,12.22755441,2985.7,2983.3,0.39615654]
[1769007967114,12.22755441,2985.5,2983.3,0.39615654]
[1769007967286,12.22755441,2985.5,2983.2,3.35203782]
[1769007967629,12.22755441,2985.5,2983.3,15.54780559]
[1769007967920,12.22755441,2985.5,2983.5,19.51138734]
[1769007968713,18.92682417,2985.4,2983.5,22.86305218]
[1769007968924,18.92682417,2985.4,2983.5,19.51138734]
[1769007969096,1.89268242,2985.3,2983.6,1.95113873]
[1769007969493,1.89268242,2985.3,2983.6,14.14695215]
[1769007969708,12.22755441,2985.8,2983.7,12.78332885]
[1769007970014,12.22755441,2985.8,2983.7,12.74981342]
[1769007970332,12.22755441,2985.8,2983.9,12.19581342]
[1769007970488,0.002,2985.3,2983.9,12.19581342]
[1769007970685,0.002,2985.3,2984.0,16.10101985]
[1769007970885,0.002,2985.3,2984.1,0.39615654]
[1769007971514,0.002,2985.3,2984.2,0.554]
[1769007972421,0.554,2985.9,2984.2,0.554]
[1769007972422,0.002,2986.2,2984.4,12.19581342]
[1769007972645,0.002,2986.2,2984.9,3.35019598]
[1769007972917,0.002,2986.2,2985.0,1.55460094]
[1769007973105,0.002,2986.2,2985.0,2.10860094]
[1769007973322,0.002,2986.2,2985.0,1.55460094]
[1769007973724,12.22955441,2986.2,2984.3,12.19581342]
[1769007974029,12.22955441,2986.2,2984.1,7.71173046]
[1769007974346,12.22955441,2986.2,2983.6,3.35159181]
[1769007974347,12.22755441,2986.0,2983.6,0.554]
[1769007974755,0.002,2986.2,2983.7,12.19581342]
[1769007974756,3.34907398,2985.9,2983.7,12.19581342]
[1769007976249,12.04923899,2986.2,2984.2,11.54869934]
[1769007976418,15.39798396,2986.2,2984.2,11.54869934]
[1769007976733,3.34896182,2986.0,2984.3,1.88642733]
[1769007976920,3.34896182,2986.0,2984.3,5.23727631]
[1769007977122,3.34896182,2986.0,2984.4,0.554]
[1769007977318,1.93007177,2986.1,2984.4,0.554]
[1769007977522,5.27896555,2986.1,2984.4,0.554]
[1769007977749,1.73282045,2986.0,2984.5,0.24404273]
[1769007978262,1.73282045,2986.0,2984.5,0.79804273]
[1769007978450,13.78005944,2986.0,2984.5,0.24404273]
[1769007978632,13.78005944,2986.0,2984.4,0.554]
[1769007979034,13.78005944,2986.0,2984.5,11.54869934]
[1769007979035,1.73282045,2986.0,2984.5,11.54869934]
[1769007979362,12.04723899,2986.1,2984.4,0.554]
[1769007979656,0.002,2986.2,2984.4,15.45345661]
[1769007979856,3.35074932,2986.2,2984.4,15.45345661]
[1769007981236,18.74673763,2986.2,2984.4,11.54869934]
[1769007981456,1.93007376,2986.1,2984.5,1.70886993]
[1769007981955,13.97731275,2986.1,2984.5,1.15486993]
[1769007982157,13.97731275,2986.1,2984.3,0.554]
[1769007982353,13.97731275,2986.1,2983.9,14.89991866]
[1769007982657,12.04253748,2985.8,2984.0,0.554]
[1769007982855,3.34929832,2985.7,2984.0,3.35115148]
[1769007983056,1.53918358,2985.6,2984.1,2.04398508]
[1769007984160,1.53918358,2985.6,2984.1,1.48998508]
[1769007984358,1.53918358,2985.6,2984.1,2.04398508]
[1769007984853,1.53918358,2985.6,2984.1,5.39497851]
[1769007985234,1.53918358,2985.6,2984.1,2.04398508]
[1769007985453,4.88859978,2985.6,2984.2,0.53951526]
[1769007985653,1.53918358,2985.6,2984.1,0.554]
[1769007985867,4.88863481,2985.6,2984.2,0.554]
[1769007986433,4.88863481,2985.6,2983.9,11.54869934]
[1769007986434,12.04723899,2985.5,2983.9,11.54869934]
[1769007986638,12.04723899,2985.5,2983.9,0.554]
[1769007987165,15.39683259,2985.5,2983.9,0.554]
[1769007987540,15.39683259,2985.5,2983.9,15.45399678]
[1769007988145,0.002,2986.0,2984.0,11.54869934]
[1769007988343,0.002,2986.0,2984.4,11.54869934]
[1769007988566,0.002,2986.0,2984.5,0.554]
[1769007989374,0.002,2986.0,2984.6,11.54869934]
[1769007989738,0.002,2986.0,2984.5,14.89929717]
[1769007990068,0.002,2986.2,2984.6,11.54869934]
[1769007990279,0.002,2986.2,2984.5,10.05188781]
[1769007990280,0.002,2986.2,2984.8,11.54869934]
[1769007991280,0.002,2986.2,2984.9,0.554]
[1769007991447,0.002,2986.2,2985.0,11.54869934]
[1769007991634,0.002,2986.2,2985.1,0.554]
[1769007992376,0.002,2986.2,2984.7,3.35032591]
[1769007992587,0.002,2986.2,2985.1,0.554]
[1769007992882,0.002,2986.2,2985.0,0.554]
[1769007993969,0.002,2986.2,2985.0,12.10269934]
[1769007994372,0.002,2986.2,2985.1,0.554]
[1769007994537,0.002,2986.2,2984.8,8.19046448]
[1769007994741,12.91389272,2986.1,2984.5,0.001]
[1769007995046,12.36189272,2986.0,2984.5,0.001]
[1769007995250,12.04723899,2985.8,2984.5,0.001]
[1769007995970,3.34929832,2985.7,2984.5,0.001]
[1769007996275,1.53965373,2985.6,2984.5,0.001]
[1769007996568,0.002,2986.0,2984.5,0.001]
[1769007996945,3.35101145,2986.0,2984.5,0.001]
[1769007997146,0.002,2986.0,2984.5,11.54969934]
[1769007997345,0.002,2986.0,2984.6,10.099173]
[1769007997564,0.002,2986.0,2984.7,12.55871664]
[1769007998377,0.002,2986.0,2984.7,15.90911589]
[1769007998578,0.002,2986.0,2984.8,0.554]
[1769007999053,0.002,2986.0,2984.7,1.0100173]
[1769007999253,0.002,2986.0,2984.5,3.90563176]
[1769007999462,0.002,2986.0,2984.5,15.45433702]
[1769007999772,0.002,2986.0,2984.5,15.45427648]
[1769008000376,0.002,2986.0,2984.5,12.10369934]
[1769008000678,0.002,2986.7,2985.1,11.54869934]
[1769008000876,3.34945109,2987.4,2985.4,11.54869934]
[1769008001070,0.002,2987.4,2985.6,11.54869934]
[1769008002071,0.002,2987.4,2985.9,11.54869934]
[1769008002878,0.002,2987.8,2985.9,11.54869934]
[1769008003176,12.04923899,2987.8,2986.0,0.554]
[1769008003378,12.04923899,2987.8,2986.0,12.10269934]
[1769008003379,1.53960923,2987.7,2986.0,12.10269934]
[1769008003782,0.002,2987.8,2986.0,12.10269934]
[1769008004288,0.002,2987.8,2986.0,15.45163566]
[1769008004590,12.04923899,2987.8,2986.0,11.54869934]
[1769008004756,12.04923899,2987.8,2985.9,0.554]
[1769008005286,0.002,2987.8,2986.1,11.54869934]
[1769008005464,0.002,2987.8,2986.3,10.95460405]
[1769008006178,0.002,2987.8,2986.4,3.34851326]
[1769008006684,11.90290518,2987.8,2986.1,0.554]
[1769008006878,11.90290518,2987.8,2986.1,3.9028444]
[1769008007264,11.90290518,2987.8,2986.2,3.34872691]
[1769008007464,13.0911957,2987.7,2986.3,0.39027269]
[1769008007658,0.002,2988.0,2986.5,10.95460405]
[1769008007859,11.90090518,2990.3,2987.7,11.12932209]
[1769008008083,11.90090518,2990.3,2987.9,6.00028]
[1769008008386,3.34376672,2990.7,2988.3,10.95460405]
[1769008008588,11.90090518,2990.8,2988.8,7.88573403]
[1769008008797,18.58718492,2991.2,2988.9,11.50860405]
[1769008009162,11.90090518,2991.1,2988.4,2.32858067]
[1769008009356,11.90090518,2991.1,2988.4,1.88403381]
[1769008009357,11.90090518,2990.9,2988.4,1.88403381]
[1769008009563,11.90090518,2990.7,2988.3,10.95460405]
[1769008010002,11.90090518,2990.7,2987.7,8.06045207]
[1769008010003,11.90090518,2990.3,2987.7,0.17471804]
[1769008010156,11.90090518,2990.1,2987.9,10.95460405]
[1769008010356,11.90090518,2990.1,2988.0,10.95460405]
[1769008010662,1.52451631,2990.0,2988.2,10.95460405]
[1769008010972,1.52451631,2990.0,2988.1,1.09546041]
[1769008010973,11.90090518,2990.2,2988.1,1.09546041]
[1769008011183,11.90090518,2990.2,2987.9,0.554]
[1769008012191,11.90090518,2990.0,2987.8,10.95460405]
[1769008013309,11.90090518,2990.0,2987.7,0.17471804]
[1769008013918,11.90090518,2989.8,2987.7,0.17471804]
[1769008014064,11.90090518,2989.6,2986.8,10.95460405]
[1769008014266,11.90090518,2988.9,2986.3,0.39027269]
[1769008014462,11.90090518,2988.9,2986.1,3.34878011]
[1769008014691,11.90090518,2988.7,2986.0,3.34894354]
[1769008015002,0.553,2988.8,2985.4,3.34959418]
[1769008015003,11.90090518,2988.5,2985.4,3.34959418]
[1769008015160,11.90090518,2988.3,2985.5,0.33495942]
[1769008015362,11.90090518,2988.3,2984.5,0.001]
[1769008015363,11.90090518,2987.9,2985.0,3.35007317]
[1769008015559,0.43753814,2988.2,2985.2,3.532951]
[1769008015560,11.90090518,2987.7,2985.2,3.532951]
[1769008015764,11.90090518,2987.7,2985.2,2.98279]
[1769008015990,11.90090518,2987.7,2984.7,10.95560405]
[1769008016195,11.90090518,2987.5,2984.8,3.35024259]
[1769008016382,13.38867316,2987.6,2984.9,1.43058466]
[1769008016383,11.90090518,2987.3,2984.9,1.43058466]
[1769008016693,11.90090518,2987.3,2984.7,0.001]
[1769008016897,2.65695783,2987.4,2984.7,0.001]
[1769008017072,11.90090518,2986.9,2984.7,0.001]
[1769008017281,11.90090518,2986.7,2984.7,0.001]
[1769008017478,11.90090518,2986.5,2984.7,0.001]
[1769008017681,11.90090518,2986.3,2984.7,0.001]
[1769008018600,1.20289052,2986.4,2984.7,0.001]
[1769008018601,11.69654842,2986.1,2984.7,0.001]
[1769008020012,12.24954842,2986.1,2984.7,0.001]
[1769008020314,12.24954842,2986.1,2984.9,0.001]
[1769008020853,0.553,2986.0,2984.9,0.001]
[1769008021032,0.553,2986.3,2984.9,0.001]
[1769008022085,3.90165693,2986.3,2984.9,0.001]
[1769008022289,12.08671411,2986.2,2984.9,0.001]
[1769008022720,12.08671411,2986.2,2984.7,0.001]
[1769008023022,0.554,2986.1,2984.7,0.001]
[1769008023355,11.69654842,2987.3,2984.7,10.94249539]
[1769008023490,11.69654842,2987.1,2984.8,12.03574493]
[1769008024015,0.554,2987.4,2985.4,10.94149539]
[1769008024179,0.554,2987.4,2985.6,10.94149539]
[1769008024385,3.34683698,2987.9,2985.6,10.94149539]
[1769008024650,15.04317132,2988.1,2985.9,10.94149539]
[1769008024844,15.04317132,2988.1,2986.0,1.6242898]
[1769008024845,13.20086555,2988.0,2986.0,1.6242898]
[1769008024999,13.20086555,2988.0,2985.6,2.81879]
[1769008025490,13.20086555,2988.0,2985.6,10.94149539]
[1769008026114,11.69654842,2987.8,2985.7,3.34929832]
[1769008026514,11.69654842,2987.8,2985.5,3.34942576]
[1769008026714,11.69654842,2987.8,2985.6,3.34937218]
[1769008026900,13.87025293,2987.7,2985.7,0.33493722]
[1769008027193,2.17370451,2987.7,2985.9,22.80218439]
[1769008027395,2.17370451,2987.7,2985.7,0.33493722]
[1769008027396,6.69351264,2988.0,2986.0,10.94149539]
[1769008027622,3.34675632,2988.0,2986.0,10.94149539]
[1769008027985,3.34661183,2988.1,2986.0,10.94149539]
[1769008028186,3.90050541,2988.2,2986.2,18.08126139]
[1769008028387,3.90050541,2988.2,2986.3,2.18979]
[1769008028590,1.89434673,2988.1,2986.4,1.31312854]
[1769008029413,11.69654842,2989.5,2986.8,10.94149539]
[1769008029595,11.69654842,2989.5,2987.2,10.94149539]
[1769008029795,11.69654842,2989.5,2987.3,5.619619]
[1769008030002,11.69654842,2989.5,2986.8,3.046031]
[1769008030190,11.69654842,2989.5,2986.7,10.94149539]
[1769008030191,11.69654842,2989.3,2987.0,3.524271]
[1769008030390,11.69654842,2989.3,2986.9,1.07047358]
[1769008030792,11.69654842,2989.3,2985.3,3.34972832]
[1769008030793,11.82454842,2989.1,2986.2,10.94149539]
[1769008030993,11.69654842,2988.9,2986.3,6.85584771]
[1769008031213,11.69654842,2988.7,2986.4,2.29515]
[1769008031411,11.69654842,2988.7,2986.4,18.452057]
[1769008031594,11.69654842,2988.7,2986.8,3.3480476]
[1769008031791,1.16965484,2988.6,2987.0,2.289166]
[1769008032140,6.6909772,2989.1,2987.1,2.33879]
[1769008032290,6.6909772,2989.1,2987.1,2.35179]
[1769008032628,18.94037356,2989.2,2987.2,2.35179]
[1769008032792,15.59496099,2989.2,2987.2,2.35179]
[1769008032991,3.89841257,2989.2,2987.3,8.700665]
[1769008033218,7.24382514,2989.2,2987.5,3.0441]
[1769008033451,0.002,2988.7,2987.4,1.96421604]
[1769008033792,0.002,2988.7,2987.0,3.34780443]
[1769008033992,0.002,2988.7,2987.1,3.3477107]
[1769008034219,0.002,2988.7,2987.0,3.34784064]
[1769008034619,0.002,2988.7,2987.0,6.69568128]
[1769008034840,0.002,2988.7,2987.0,3.34784064]
[1769008035048,0.002,2988.7,2987.1,0.70305883]
[1769008036129,11.01487957,2988.7,2986.9,0.33480476]
[1769008036343,17.70497619,2988.6,2986.4,6.82502065]
[1769008036542,17.70497619,2988.6,2986.4,3.47650739]
[1769008037210,17.70497619,2988.6,2986.4,6.82502065]
[1769008037540,11.01287957,2988.5,2986.2,10.72635502]
[1769008037751,12.78337719,2988.4,2986.3,1.0726355]
[1769008038045,11.01287957,2988.4,2986.4,3.34849846]
[1769008038342,3.34649621,2988.2,2986.3,1.0726355]
[1769008038539,6.69299242,2988.2,2986.3,4.42125818]
[1769008038723,6.69299242,2988.2,2986.3,1.0726355]
[1769008038918,11.73747881,2988.1,2986.4,1.51477175]
[1769008040342,11.01287957,2987.9,2985.8,4.155016]
[1769008041046,0.72459924,2988.1,2986.3,10.72635502]
[1769008041234,3.34627225,2988.4,2986.5,10.72635502]
[1769008041417,3.34627225,2988.4,2986.6,10.75983791]
[1769008041616,3.34627225,2988.4,2986.6,10.72635502]
[1769008042138,3.89919778,2988.5,2986.8,10.72635502]
[1769008042445,0.002,2988.7,2987.1,10.72635502]
[1769008042613,3.34795332,2988.7,2987.2,1.74220363]
[1769008042815,6.69390664,2988.7,2986.6,10.72635502]
[1769008043242,11.01287957,2988.6,2986.2,3.34865502]
[1769008043480,11.01287957,2988.6,2986.7,3.34811716]
[1769008043751,0.553,2988.5,2986.5,14.07473825]
[1769008043913,11.56587957,2988.5,2986.5,10.72635502]
[1769008044114,12.16946753,2988.4,2986.6,1.40748077]
[1769008044315,17.70564803,2988.3,2986.2,10.72635502]
[1769008044580,11.01287957,2988.2,2985.9,2.765]
[1769008044717,11.01287957,2988.2,2985.7,10.72635502]
[1769008045046,11.01287957,2988.0,2985.7,10.72635502]
[1769008045351,11.01287957,2988.0,2985.8,3.34909721]
[1769008045517,11.01287957,2987.8,2985.9,0.33490972]
[1769008046231,11.01287957,2987.8,2985.9,3.3490455]
[1769008046541,3.34716829,2987.6,2985.6,6.698821]
[1769008046912,1.15658796,2987.9,2986.0,10.72635502]
[1769008047118,3.34840833,2988.3,2986.2,10.72635502]
[1769008047322,0.002,2988.3,2986.5,22.19112502]
[1769008047516,0.002,2988.3,2986.6,9.417776]
[1769008047832,0.002,2988.3,2986.6,10.72635502]
[1769008048135,0.002,2988.3,2986.7,24.62138102]
[1769008048337,0.002,2988.3,2986.8,10.37130681]
[1769008048528,0.002,2988.3,2986.9,7.616774]
[1769008048724,0.002,2988.3,2986.9,10.72635502]
[1769008049791,0.002,2988.3,2986.4,10.72635502]
[1769008050048,0.002,2988.3,2986.7,3.34815653]
[1769008050226,0.002,2988.3,2986.8,0.33481565]
[1769008050425,0.002,2988.3,2986.8,3.68285459]
[1769008050848,0.002,2988.3,2986.8,0.33481565]
[1769008051260,0.002,2988.3,2986.9,10.72635502]
[1769008051760,0.002,2988.3,2986.4,10.72635502]
[1769008052229,0.002,2988.3,2986.4,14.07485753]
[1769008052430,0.002,2988.3,2986.5,3.34838825]
[1769008052735,13.12042236,2988.3,2985.9,14.07536241]
[1769008053054,11.01287957,2988.1,2985.9,14.07540209]
[1769008053258,11.01287957,2988.1,2985.6,0.128]
[1769008053259,11.32509929,2988.0,2986.0,5.172038]
[1769008053564,2.10754279,2988.3,2986.7,14.07453193]
[1769008053565,0.002,2988.3,2986.7,14.07453193]
[1769008053766,0.67163939,2988.3,2986.8,12.13380821]
[1769008054646,0.67163939,2988.3,2986.9,6.69590544]
[1769008054842,0.002,2988.3,2986.9,6.69590544]
[1769008055043,0.002,2988.3,2987.1,10.72635502]
[1769008055254,0.002,2988.5,2987.3,10.72635502]
[1769008055970,0.002,2988.5,2986.9,10.04385816]
[1769008055971,3.34504674,2989.5,2987.8,5.297721]
[1769008056195,3.34543479,2989.2,2987.3,0.128]
[1769008056350,3.34509306,2989.5,2987.5,7.312972]
[1769008056684,11.01487957,2989.7,2987.5,7.312972]
[1769008056685,11.01487957,2989.7,2987.7,15.812874]
[1769008056885,14.35974257,2989.7,2987.7,13.599154]
[1769008057196,17.70460557,2989.7,2987.6,3.34716829]
[1769008057685,21.04946857,2989.7,2987.6,3.34716829]
[1769008058049,17.70460557,2989.7,2987.6,3.34716829]
[1769008058470,0.002,2988.7,2987.6,6.69433658]
[1769008058672,0.002,2988.7,2987.8,3.34694423]